fUST/lending_fUST_20241017
["ID","MTS","AMOUNT","RATE_DAILY","PERIOD"]
[340382934,1729156933354,-500.0,0.00041369,60]
[340382935,1729156933386,-500.0,0.00041369,60]
[340382936,1729156933421,-943.06,0.00041369,60]
[340382937,1729156933454,-515.10366348,0.00041369,60]
[340382938,1729156933488,-353.12318629,0.00041369,30]
[340382939,1729156933520,-500.0,0.00041369,60]
[340382940,1729156933552,-895.4,0.00041369,60]
[340382941,1729156933585,-500.0,0.00041369,60]
[340382942,1729156933617,-500.0,0.00041369,60]
[340382943,1729156933650,-1327.31,0.00041369,60]
[340382944,1729156933683,-500.0,0.00041369,60]
[340382945,1729156933904,-500.0,0.00041369,60]
[340382946,1729156933937,-500.0,0.00041369,60]
[340382947,1729156933971,-500.0,0.00041369,60]
[340382948,1729156934003,-171.07385701,0.00041369,60]
[340382949,1729156934035,-500.0,0.00041369,60]
[340382950,1729156934074,-500.0,0.00041369,60]
[340382951,1729156934108,-500.0,0.00041369,60]
[340382952,1729156934144,-500.0,0.00041369,60]
[340382953,1729156934179,-598.84624299,0.00041369,60]
[340382954,1729156934212,-500.0,0.00041369,60]
[340382955,1729156934246,-500.0,0.00041369,60]
[340382956,1729156934282,-500.0,0.00041369,60]
[340382957,1729156934317,-500.0,0.00041369,60]
[340382958,1729156934352,-500.0,0.00041369,60]
[340382959,1729156934388,-500.0,0.00041369,60]
[340382960,1729156934422,-709.16,0.00041369,60]
[340382961,1729156934456,-573.95099141,0.00041369,60]
[340382962,1729156934488,-500.0,0.00041369,60]
[340382963,1729156934520,-500.0,0.00041369,60]
[340382964,1729156934552,-500.0,0.00041369,60]
[340382965,1729156934585,-500.0,0.00041369,60]
[340382966,1729156934618,-500.0,0.00041369,60]
[340382967,1729156934650,-500.0,0.00041369,60]
[340382968,1729156934681,-500.0,0.00041369,60]
[340382969,1729156934713,-539.23849244,0.00041369,60]
[340382970,1729156934746,-500.0,0.00041369,60]
[340382971,1729156934780,-500.0,0.00041369,60]
[340382972,1729156934813,-500.0,0.00041369,60]
[340382973,1729156934846,-500.0,0.00041369,60]
[340382974,1729156934880,-500.0,0.00041369,60]
[340382975,1729156934915,-500.0,0.00041369,60]
[340382976,1729156934948,-500.0,0.00041369,60]
[340382977,1729156934987,-927.2,0.00041369,60]
[340382978,1729156935020,-500.0,0.00041369,60]
[340382979,1729156935055,-500.0,0.00041369,60]
[340382980,1729156935089,-500.0,0.00041369,60]
[340382981,1729156935122,-500.0,0.00041369,60]
[340382982,1729156935158,-500.0,0.00041369,60]
[340382983,1729156935192,-1789.72,0.00041369,60]
[340382984,1729156935226,-500.0,0.00041369,60]
[340382985,1729156935260,-500.0,0.00041369,60]
[340382986,1729156935293,-1000.0,0.00041369,120]
[340382987,1729156935328,-500.0,0.00041369,60]
[340382988,1729156935359,-500.0,0.00041369,60]
[340382989,1729156935392,-520.62140317,0.00041369,60]
[340382990,1729156935423,-500.0,0.00041369,60]
[340382991,1729156935455,-371.97209731,0.00041369,60]
[340382992,1729156935489,-500.0,0.00041369,60]
[340382993,1729156935522,-500.0,0.00041369,60]
[340382994,1729156935554,-507.36213187,0.00041369,60]
[340382995,1729156935586,-500.0,0.00041369,60]
[340382996,1729156935619,-517.8930651,0.00041369,60]
[340382997,1729156935651,-500.0,0.00041369,60]
[340382998,1729156935685,-500.0,0.00041369,60]
[340382999,1729156935718,-500.0,0.00041369,60]
[340383000,1729156935752,-500.0,0.00041369,60]
[340383001,1729156935786,-978.43,0.00041369,60]
[340383002,1729156935819,-500.0,0.00041369,60]
[340383003,1729156935851,-500.0,0.00041369,60]
[340383004,1729156935886,-1003.98,0.00041369,60]
[340383005,1729156935921,-508.29171283,0.00041369,60]
[340383006,1729156935957,-590.2,0.00041369,60]
[340383007,1729156935991,-500.0,0.00041369,60]
[340383008,1729156936024,-500.0,0.00041369,60]
[340383009,1729156936061,-2539.88,0.00041369,60]
[340383010,1729156936094,-516.3871171,0.00041369,60]
[340383011,1729156936127,-500.0,0.00041369,60]
[340383012,1729156936163,-500.0,0.00041369,60]
[340383013,1729156936198,-500.0,0.00041369,60]
[340383014,1729156936232,-508.624288,0.00041369,60]
[340383015,1729156936265,-500.0,0.00041369,60]
[340383016,1729156936298,-500.0,0.00041369,60]
[340383017,1729156936332,-500.0,0.00041369,60]
[340383018,1729156936364,-500.0,0.00041369,60]
[340383019,1729156936396,-500.0,0.00041369,60]
[340383020,1729156936429,-500.0,0.00041369,60]
[340383021,1729156936462,-500.0,0.00041369,60]
[340383022,1729156936494,-500.0,0.00041369,60]
[340383023,1729156936527,-500.0,0.00041369,60]
[340383024,1729156936560,-500.0,0.00041369,60]
[340383025,1729156936594,-500.0,0.00041369,60]
[340383026,1729156936627,-500.0,0.00041369,60]
[340383027,1729156936659,-505.32859565,0.00041369,60]
[340383028,1729156936692,-841.44,0.00041369,60]
[340383029,1729156936725,-500.0,0.00041369,60]
[340383030,1729156936759,-581.62,0.00041369,60]
[340383031,1729156936794,-500.0,0.00041369,60]
[340383032,1729156936829,-500.0,0.00041369,60]
[340383033,1729156936863,-510.10290131,0.00041369,60]
[340383034,1729156936897,-500.0,0.00041369,30]
[340383035,1729156936931,-501.1027151,0.00041369,60]
[340383036,1729156936964,-500.0,0.00041369,60]
[340383037,1729156936997,-979.17,0.00041369,60]
[340383038,1729156937030,-500.0,0.00041369,60]
[340383039,1729156937063,-1036.02,0.00041369,60]
[340383040,1729156937097,-496.79573587,0.00041369,60]
[340383041,1729156937132,-500.0,0.00041369,60]
[340383042,1729156937167,-500.0,0.00041369,60]
[340383043,1729156937199,-500.0,0.00041369,60]
[340383044,1729156937230,-500.0,0.00041369,60]
[340383045,1729156937260,-500.0,0.00041369,60]
[340383046,1729156937293,-500.0,0.00041369,60]
[340383047,1729156937323,-500.0,0.00041369,60]
[340383048,1729156937531,-500.0,0.00041369,60]
[340383049,1729156937564,-573.15840558,0.00041369,60]
[340383050,1729156937596,-500.0,0.00041369,60]
[340383051,1729156937627,-500.0,0.00041369,60]
[340383052,1729156937659,-500.0,0.00041369,60]
[340383053,1729156937690,-783.88,0.00041369,60]
[340383054,1729156937722,-509.69495476,0.00041369,60]
[340383055,1729156937756,-500.0,0.00041369,60]
[340383056,1729156937788,-1103.88,0.00041369,60]
[340383057,1729156937819,-500.0,0.00041369,60]
[340383058,1729156937849,-500.0,0.00041369,60]
[340383059,1729156937880,-500.0,0.00041369,60]
[340383060,1729156937910,-500.0,0.00041369,60]
[340383061,1729156937943,-500.0,0.00041369,60]
[340383062,1729156937973,-188.0,0.00041369,60]
[340383063,1729156938005,-500.0,0.00041369,60]
[340383064,1729156938040,-527.15453854,0.00041369,60]
[340383065,1729156938075,-500.0,0.00041369,60]
[340383066,1729156938108,-500.0,0.00041369,60]
[340383067,1729156938140,-890.34,0.00041369,60]
[340383068,1729156938175,-500.0,0.00041369,60]
[340383069,1729156938210,-500.0,0.00041369,60]
[340383070,1729156938246,-500.0,0.00041369,60]
[340383071,1729156938279,-500.0,0.00041369,60]
[340383072,1729156938311,-630.62,0.00041369,60]
[340383073,1729156938344,-665.23,0.00041369,60]
[340383074,1729156938375,-500.0,0.00041369,60]
[340383075,1729156938406,-500.0,0.00041369,60]
[340383076,1729156938438,-1089.03,0.00041369,60]
[340383077,1729156938468,-500.0,0.00041369,60]
[340383078,1729156938499,-985.62,0.00041369,60]
[340383079,1729156938529,-566.05,0.00041369,60]
[340383080,1729156938561,-500.0,0.00041369,60]
[340383081,1729156938591,-500.0,0.00041369,60]
[340383082,1729156938622,-500.0,0.00041369,60]
[340383083,1729156938653,-500.0,0.00041369,60]
[340383084,1729156938686,-814.54,0.00041369,60]
[340383085,1729156938717,-575.83,0.00041369,60]
[340383086,1729156938748,-500.0,0.00041369,60]
[340383087,1729156938779,-500.0,0.00041369,60]
[340383088,1729156938810,-500.0,0.00041369,60]
[340383089,1729156938841,-500.0,0.00041369,60]
[340383090,1729156938873,-1433.2,0.00041369,60]
[340383091,1729156938908,-500.0,0.00041369,60]
[340383092,1729156938947,-500.0,0.00041369,60]
[340383093,1729156938979,-500.0,0.00041369,60]
[340383094,1729156939013,-500.0,0.00041369,60]
[340383095,1729156939055,-542.84,0.00041369,60]
[340383096,1729156939087,-344.88747853,0.00041369,60]
[340383097,1729156939118,-500.0,0.00041369,60]
[340383098,1729156939151,-500.0,0.00041369,60]
[340383099,1729156939182,-500.0,0.00041369,60]
[340383100,1729156939213,-2442.96,0.00041369,60]
[340383101,1729156939247,-170.39011417,0.00041369,60]
[340383102,1729156939281,-500.0,0.00041369,60]
[340383103,1729156939313,-500.0,0.00041369,60]
[340383104,1729156939345,-508.00720439,0.00041369,60]
[340383105,1729156939376,-500.0,0.00041369,60]
[340383106,1729156939406,-500.0,0.00041369,60]
[340383107,1729156939436,-500.0,0.00041369,60]
[340383108,1729156939468,-282.11276949,0.00041369,60]
[340383109,1729156939498,-500.0,0.00041369,60]
[340383110,1729156939528,-500.0,0.00041369,60]
[340383111,1729156939560,-500.0,0.00041369,60]
[340383112,1729156939595,-500.0,0.00041369,60]
[340383113,1729156939628,-500.0,0.00041369,60]
[340383114,1729156939660,-500.0,0.00041369,60]
[340383115,1729156939692,-1194.49,0.00041369,60]
[340383116,1729156939738,-500.0,0.00041369,60]
[340383117,1729156939773,-500.0,0.00041369,60]
[340383118,1729156939805,-2561.43,0.00041369,60]
[340383119,1729156939841,-509.8455241,0.00041369,60]
[340383120,1729156939877,-827.35,0.00041369,60]
[340383121,1729156939912,-1082.7,0.00041369,60]
[340383122,1729156939946,-530.84582927,0.00041369,60]
[340383123,1729156939981,-500.0,0.00041369,60]
[340383124,1729156940019,-500.0,0.00041369,60]
[340383125,1729156940055,-760.91,0.00041369,60]
[340383126,1729156940092,-500.0,0.00041369,60]
[340383127,1729156940127,-500.0,0.00041369,60]
[340383128,1729156940167,-511.65136182,0.00041369,60]
[340383129,1729156940201,-500.0,0.00041369,60]
[340383130,1729156940237,-500.0,0.00041369,60]
[340383131,1729156940269,-510.61005296,0.00041369,60]
[340383132,1729156940304,-500.0,0.00041369,60]
[340383133,1729156940340,-500.0,0.00041369,60]
[340383134,1729156940373,-500.0,0.00041369,60]
[340383135,1729156940405,-500.0,0.00041369,60]
[340383136,1729156940439,-500.0,0.00041369,60]
[340383137,1729156940476,-510.08298553,0.00041369,60]
[340383138,1729156940511,-500.0,0.00041369,60]
[340383139,1729156940550,-500.0,0.00041369,60]
[340383140,1729156940581,-551.56171272,0.00041369,60]
[340383141,1729156940621,-500.0,0.00041369,60]
[340383142,1729156940661,-500.0,0.00041369,60]
[340383143,1729156940698,-1109.25,0.00041369,60]
[340383144,1729156940732,-516.01042785,0.00041369,60]
[340383145,1729156940766,-500.0,0.00041369,60]
[340383146,1729156940800,-500.0,0.00041369,60]
[340383147,1729156940834,-500.0,0.00041369,60]
[340383148,1729156940868,-2341.58,0.00041369,30]
[340383149,1729156940903,-5116.54,0.00041369,60]
[340383150,1729156940938,-500.0,0.00041369,60]
[340383151,1729156940974,-500.0,0.00041369,60]
[340383152,1729156941264,-500.0,0.00041369,60]
[340383153,1729156941298,-935.2,0.00041369,60]
[340383154,1729156941336,-500.0,0.00041369,60]
[340383155,1729156941368,-500.0,0.00041369,60]
[340383156,1729156941403,-508.22046964,0.00041369,60]
[340383157,1729156941437,-500.0,0.00041369,60]
[340383158,1729156941470,-500.0,0.00041369,60]
[340383159,1729156941504,-500.0,0.00041369,60]
[340383160,1729156941535,-866.24,0.00041369,60]
[340383161,1729156941568,-500.0,0.00041369,60]
[340383162,1729156941601,-500.0,0.00041369,60]
[340383163,1729156941633,-1240.33,0.00041369,60]
[340383164,1729156941668,-500.0,0.00041369,60]
[340383165,1729156941702,-500.0,0.00041369,60]
[340383166,1729156941737,-514.77623007,0.00041369,60]
[340383167,1729156941769,-500.0,0.00041369,30]
[340383168,1729156941804,-500.0,0.00041369,60]
[340383169,1729156941839,-500.0,0.00041369,60]
[340383170,1729156941875,-500.0,0.00041369,60]
[340383171,1729156941911,-901.88,0.00041369,60]
[340383172,1729156941944,-565.28456701,0.00041369,60]
[340383173,1729156941979,-500.0,0.00041369,60]
[340383174,1729156942011,-500.0,0.00041369,60]
[340383175,1729156942047,-500.0,0.00041369,60]
[340383176,1729156942080,-500.0,0.00041369,60]
[340383177,1729156942114,-500.0,0.00041369,60]
[340383178,1729156942150,-500.0,0.00041369,60]
[340383179,1729156942183,-500.0,0.00041369,60]
[340383180,1729156942217,-500.0,0.00041369,60]
[340383181,1729156942252,-523.74848852,0.00041369,60]
[340383182,1729156942286,-1035.23,0.00041369,60]
[340383183,1729156942318,-500.0,0.00041369,60]
[340383184,1729156942357,-657.41,0.00041369,60]
[340383185,1729156942392,-500.0,0.00041369,60]
[340383186,1729156942425,-500.0,0.00041369,60]
[340383187,1729156942458,-500.0,0.00041369,60]
[340383188,1729156942492,-500.0,0.00041369,60]
[340383189,1729156942528,-500.0,0.00041369,60]
[340383190,1729156942562,-500.0,0.00041369,60]
[340383191,1729156942595,-500.0,0.00041369,60]
[340383192,1729156942631,-500.0,0.00041369,60]
[340383193,1729156942665,-500.0,0.00041369,60]
[340383194,1729156942700,-506.99002111,0.00041369,60]
[340383195,1729156942739,-500.0,0.00041369,60]
[340383196,1729156942774,-500.0,0.00041369,60]
[340383197,1729156942809,-500.0,0.00041369,60]
[340383198,1729156942845,-500.0,0.00041369,60]
[340383199,1729156942879,-500.0,0.00041369,60]
[340383200,1729156942913,-500.0,0.00041369,60]
[340383201,1729156942948,-500.0,0.00041369,60]
[340383202,1729156942979,-500.0,0.00041369,60]
[340383203,1729156943015,-500.0,0.00041369,60]
[340383204,1729156943050,-500.0,0.00041369,60]
[340383205,1729156943082,-500.0,0.00041369,60]
[340383206,1729156943114,-500.0,0.00041369,60]
[340383207,1729156943149,-500.0,0.00041369,60]
[340383208,1729156943183,-500.0,0.00041369,60]
[340383209,1729156943216,-500.0,0.00041369,60]
[340383210,1729156943252,-500.0,0.00041369,60]
[340383211,1729156943286,-500.0,0.00041369,60]
[340383212,1729156943319,-335.56398133,0.00041369,60]
[340383213,1729156943352,-500.0,0.00041369,60]
[340383214,1729156943385,-973.81,0.00041369,60]
[340383215,1729156943417,-500.0,0.00041369,60]
[340383216,1729156943451,-500.0,0.00041369,60]
[340383217,1729156943483,-500.0,0.00041369,60]
[340383218,1729156943515,-500.0,0.00041369,60]
[340383219,1729156943548,-500.0,0.00041369,60]
[340383220,1729156943581,-1458.33,0.00041369,60]
[340383221,1729156943615,-1353.67,0.00041369,60]
[340383222,1729156943647,-500.0,0.00041369,60]
[340383223,1729156943681,-500.0,0.00041369,60]
[340383224,1729156943713,-500.0,0.00041369,60]
[340383225,1729156943745,-762.66,0.00041369,60]
[340383226,1729156943781,-1000.0,0.00041369,120]
[340383227,1729156943815,-500.0,0.00041369,60]
[340383228,1729156943848,-500.0,0.00041369,60]
[340383229,1729156943884,-500.0,0.00041369,60]
[340383230,1729156943922,-500.0,0.00041369,60]
[340383231,1729156943957,-650.71,0.00041369,60]
[340383232,1729156943991,-500.0,0.00041369,60]
[340383233,1729156944025,-500.0,0.00041369,60]
[340383234,1729156944061,-500.0,0.00041369,60]
[340383235,1729156944096,-500.0,0.00041369,60]
[340383236,1729156944130,-519.41094234,0.00041369,60]
[340383237,1729156944164,-500.0,0.00041369,60]
[340383238,1729156944199,-500.0,0.00041369,60]
[340383239,1729156944233,-835.54,0.00041369,60]
[340383240,1729156944268,-500.0,0.00041369,60]
[340383241,1729156944301,-1182.57,0.00041369,60]
[340383242,1729156944336,-898.16,0.00041369,60]
[340383243,1729156944370,-500.0,0.00041369,60]
[340383244,1729156944405,-500.0,0.00041369,60]
[340383245,1729156944440,-500.0,0.00041369,60]
[340383246,1729156944475,-500.0,0.00041369,60]
[340383247,1729156944510,-500.0,0.00041369,60]
[340383248,1729156944543,-500.0,0.00041369,60]
[340383249,1729156944576,-759.22,0.00041369,60]
[340383250,1729156944608,-500.0,0.00041369,60]
[340383251,1729156944640,-500.0,0.00041369,60]
[340383252,1729156944673,-500.0,0.00041369,60]
[340383253,1729156944706,-500.0,0.00041369,60]
[340383254,1729156944740,-500.0,0.00041369,60]
[340383255,1729156944777,-500.0,0.00041369,60]
[340383256,1729156944994,-508.94799233,0.00041369,60]
[340383257,1729156945031,-500.0,0.00041369,60]
[340383258,1729156945066,-500.0,0.00041369,60]
[340383259,1729156945103,-500.0,0.00041369,60]
[340383260,1729156945138,-500.0,0.00041369,60]
[340383261,1729156945175,-500.0,0.00041369,60]
[340383262,1729156945210,-500.0,0.00041369,60]
[340383263,1729156945245,-500.0,0.00041369,60]
[340383264,1729156945279,-788.25,0.00041369,60]
[340383265,1729156945313,-829.97,0.00041369,120]
[340383266,1729156945345,-500.0,0.00041369,60]
[340383267,1729156945378,-500.0,0.00041369,60]
[340383268,1729156945411,-2230.79,0.00041369,60]
[340383269,1729156945445,-500.0,0.00041369,60]
[340383270,1729156945480,-500.0,0.00041369,60]
[340383271,1729156945513,-500.0,0.00041369,60]
[340383272,1729156945546,-500.0,0.00041369,60]
[340383273,1729156945580,-500.0,0.00041369,60]
[340383274,1729156945617,-500.0,0.00041369,60]
[340383275,1729156945652,-1156.09,0.00041369,60]
[340383276,1729156945688,-500.0,0.00041369,60]
[340383277,1729156945728,-500.0,0.00041369,60]
[340383278,1729156945763,-500.0,0.00041369,60]
[340383279,1729156945798,-500.0,0.00041369,60]
[340383280,1729156945831,-512.86,0.00041369,60]
[340383281,1729156945866,-500.0,0.00041369,60]
[340383282,1729156945900,-500.0,0.00041369,60]
[340383283,1729156945936,-500.0,0.00041369,60]
[340383284,1729156945969,-1055.28,0.00041369,60]
[340383285,1729156946001,-861.18,0.00041369,60]
[340383286,1729156946034,-905.29,0.00041369,60]
[340383287,1729156946069,-500.0,0.00041369,60]
[340383288,1729156946102,-500.0,0.00041369,60]
[340383289,1729156946135,-500.0,0.00041369,60]
[340383290,1729156946171,-500.0,0.00041369,60]
[340383291,1729156946204,-593.86,0.00041369,60]
[340383292,1729156946238,-1174.01,0.00041369,60]
[340383293,1729156946272,-522.36,0.00041369,60]
[340383294,1729156946307,-500.0,0.00041369,60]
[340383295,1729156946341,-500.0,0.00041369,60]
[340383296,1729156946377,-2661.39,0.00041369,60]
[340383297,1729156946411,-544.44138231,0.00041369,60]
[340383298,1729156946447,-500.0,0.00041369,60]
[340383299,1729156946482,-500.0,0.00041369,60]
[340383300,1729156946516,-472.34206321,0.00041369,60]
[340383301,1729156946549,-500.0,0.00041369,60]
[340383302,1729156946583,-500.0,0.00041369,60]
[340383303,1729156946616,-547.85605726,0.00041369,60]
[340383304,1729156946648,-4800.3,0.00041369,60]
[340383305,1729156946681,-500.0,0.00041369,60]
[340383306,1729156946713,-500.0,0.00041369,60]
[340383307,1729156946748,-559.16599564,0.00041369,60]
[340383308,1729156946783,-500.0,0.00041369,60]
[340383309,1729156946818,-210.07815065,0.00041369,60]
[340383310,1729156946854,-500.0,0.00041369,60]
[340383311,1729156946887,-500.0,0.00041369,60]
[340383312,1729156946921,-955.98,0.00041369,60]
[340383313,1729156946953,-548.64,0.00041369,60]
[340383314,1729156946986,-318.03054884,0.00041369,60]
[340383315,1729156947017,-500.0,0.00041369,60]
[340383316,1729156947054,-500.0,0.00041369,60]
[340383317,1729156947087,-350.66981693,0.00041369,60]
[340383318,1729156947122,-5161.34,0.00041369,60]
[340383319,1729156947156,-971.22,0.00041369,60]
[340383320,1729156947189,-500.0,0.00041369,60]
[340383321,1729156947223,-500.0,0.00041369,60]
[340383322,1729156947256,-500.0,0.00041369,60]
[340383323,1729156947289,-500.0,0.00041369,60]
[340383324,1729156947323,-921.13,0.00041369,60]
[340383325,1729156947359,-500.0,0.00041369,60]
[340383326,1729156947391,-500.0,0.00041369,60]
[340383327,1729156947424,-500.0,0.00041369,60]
[340383328,1729156947455,-500.0,0.00041369,60]
[340383329,1729156947487,-1038.67,0.00041369,60]
[340383330,1729156947517,-475.99284138,0.00041369,60]
[340383331,1729156947551,-500.0,0.00041369,60]
[340383332,1729156947582,-523.37193527,0.00041369,60]
[340383333,1729156947617,-500.0,0.00041369,60]
[340383334,1729156947650,-500.0,0.00041369,60]
[340383335,1729156947683,-500.0,0.00041369,60]
[340383336,1729156947715,-1088.09,0.00041369,60]
[340383337,1729156947750,-1122.68,0.00041369,60]
[340383338,1729156947784,-500.0,0.00041369,60]
[340383339,1729156947817,-500.0,0.00041369,60]
[340383340,1729156947851,-877.3,0.00041369,60]
[340383341,1729156947885,-2534.2,0.00041369,60]
[340383342,1729156947921,-966.99,0.00041369,60]
[340383343,1729156947955,-500.0,0.00041369,60]
[340383344,1729156947988,-500.0,0.00041369,60]
[340383345,1729156948023,-500.0,0.00041369,60]
[340383346,1729156948060,-876.41,0.00041369,60]
[340383347,1729156948096,-500.0,0.00041369,60]
[340383348,1729156948131,-500.0,0.00041369,60]
[340383349,1729156948169,-500.0,0.00041369,60]
[340383350,1729156948203,-3258.44,0.00041369,60]
[340383351,1729156948237,-500.0,0.00041369,60]
[340383352,1729156948270,-500.0,0.00041369,60]
[340383353,1729156948304,-500.0,0.00041369,60]
[340383354,1729156948337,-500.0,0.00041369,60]
[340383355,1729156948371,-500.0,0.00041369,60]
[340383356,1729156948405,-88336.54,0.00041369,60]
[340383357,1729156948438,-500.0,0.00041369,60]
[340383358,1729156948470,-500.0,0.00041369,60]
[340383359,1729156948501,-500.0,0.00041369,60]
[340383360,1729156948701,-500.0,0.00041369,60]
[340383361,1729156948734,-500.0,0.00041369,60]
[340383362,1729156948768,-500.0,0.00041369,60]
[340383363,1729156948811,-2603.18,0.00041369,60]
[340383364,1729156948844,-515.98769815,0.00041369,60]
[340383365,1729156948878,-500.0,0.00041369,60]
[340383366,1729156948915,-4665.7,0.00041369,60]
[340383367,1729156948949,-500.0,0.00041369,60]
[340383368,1729156948983,-500.0,0.00041369,60]
[340383369,1729156949016,-1334.81,0.00041369,60]
[340383370,1729156949051,-2129.84,0.00041369,60]
[340383371,1729156949086,-500.0,0.00041369,60]
[340383372,1729156949119,-988.07,0.00041369,60]
[340383373,1729156949154,-746.44,0.00041369,60]
[340383374,1729156949189,-500.0,0.00041369,60]
[340383375,1729156949223,-4397.4,0.00041369,60]
[340383376,1729156949256,-500.0,0.00041369,60]
[340383377,1729156949289,-500.0,0.00041369,60]
[340383378,1729156949323,-500.0,0.00041369,60]
[340383379,1729156949356,-500.0,0.00041369,60]
[340383380,1729156949391,-5444.21,0.00041369,60]
[340383381,1729156949425,-2112.9,0.00041369,60]
[340383382,1729156949458,-500.0,0.00041369,60]
[340383383,1729156949491,-782.02,0.00041369,60]
[340383384,1729156949525,-500.0,0.00041369,60]
[340383385,1729156949559,-500.0,0.00041369,60]
[340383386,1729156949593,-500.0,0.00041369,60]
[340383387,1729156949627,-500.0,0.00041369,60]
[340383388,1729156949661,-831.38,0.00041369,60]
[340383389,1729156949693,-500.0,0.00041369,60]
[340383390,1729156949728,-500.0,0.00041369,60]
[340383391,1729156949762,-500.0,0.00041369,60]
[340383392,1729156949795,-500.0,0.00041369,60]
[340383393,1729156949828,-500.0,0.00041369,60]
[340383394,1729156949862,-500.0,0.00041369,60]
[340383395,1729156949896,-500.0,0.00041369,60]
[340383396,1729156949930,-500.0,0.00041369,60]
[340383397,1729156949966,-500.0,0.00041369,60]
[340383398,1729156950003,-500.0,0.00041369,60]
[340383399,1729156950037,-500.0,0.00041369,60]
[340383400,1729156950074,-500.0,0.00041369,60]
[340383401,1729156950109,-500.0,0.00041369,60]
[340383402,1729156950145,-500.0,0.00041369,60]
[340383403,1729156950181,-1159.47,0.00041369,60]
[340383404,1729156950216,-500.0,0.00041369,60]
[340383405,1729156950253,-500.0,0.00041369,60]
[340383406,1729156950288,-1056.73,0.00041369,60]
[340383407,1729156950320,-500.0,0.00041369,60]
[340383408,1729156950354,-980.67,0.00041369,60]
[340383409,1729156950387,-862.09,0.00041369,60]
[340383410,1729156950421,-500.0,0.00041369,60]
[340383411,1729156950455,-500.0,0.00041369,60]
[340383412,1729156950489,-13847.76,0.00041369,30]
[340383413,1729156950526,-2013.2,0.00041369,60]
[340383414,1729156950558,-581.12,0.00041369,60]
[340383415,1729156950591,-500.0,0.00041369,60]
[340383416,1729156950624,-500.0,0.00041369,60]
[340383417,1729156950657,-500.0,0.00041369,60]
[340383418,1729156950690,-500.0,0.00041369,60]
[340383419,1729156950725,-789.83,0.00041369,60]
[340383420,1729156950760,-515.43223365,0.00041369,60]
[340383421,1729156950795,-532.75564343,0.00041369,60]
[340383422,1729156950829,-500.0,0.00041369,60]
[340383423,1729156950863,-828.72,0.00041369,60]
[340383424,1729156950896,-500.0,0.00041369,60]
[340383425,1729156950930,-859.58,0.00041369,60]
[340383426,1729156950964,-500.0,0.00041369,60]
[340383427,1729156950997,-905.28,0.00041369,60]
[340383428,1729156951031,-500.0,0.00041369,60]
[340383429,1729156951068,-1003.18,0.00041369,60]
[340383430,1729156951104,-500.0,0.00041369,60]
[340383431,1729156951136,-511.90216169,0.00041369,60]
[340383432,1729156951172,-843.34,0.00041369,30]
[340383433,1729156951204,-522.40140796,0.00041369,60]